[Event "Titled Tuesday Blitz June 21 Late 2022"]
[White "Cabarkapa, Novak"]
[Black "Zhou, Qiyu"]
[WhiteFideId "943746"]
[BlackFideId "505161"]
[WhiteElo "2433"]
[BlackElo "1925"]
[Result "1-0"]
[Round "02"]
[TimeControl "180+1"]
[Date "2022.06.22"]
[WhiteClock "0:00:17"]
[BlackClock "0:00:03"]

1. h4 {[%clk 0:03:00]}  e5 {[%clk 0:02:56]} 2. c3 {[%clk 0:03:00]}  d5 {[%clk 0:02:50]} 3. d4 {[%clk 0:03:00]}  Nc6 {[%clk 0:02:45]} 4. dxe5 {[%clk 0:02:57]}  Nxe5 {[%clk 0:02:46]} 5. Nf3 {[%clk 0:02:58]}  Nxf3+ {[%clk 0:02:44]} 6. exf3 {[%clk 0:02:59]}  Nf6 {[%clk 0:02:43]} 7. Bd3 {[%clk 0:02:51]}  Bd6 {[%clk 0:02:36]} 8. O-O {[%clk 0:02:50]}  O-O {[%clk 0:02:34]} 9. Qc2 {[%clk 0:02:44]}  h6 {[%clk 0:02:34]} 10. Re1 {[%clk 0:02:38]}  c5 {[%clk 0:02:28]} 11. Nd2 {[%clk 0:02:35]}  Bc7 {[%clk 0:02:18]} 12. Nf1 {[%clk 0:02:34]}  Nh5 {[%clk 0:02:04]} 13. g3 {[%clk 0:02:29]}  Bh3 {[%clk 0:02:00]} 14. Bh7+ {[%clk 0:02:11]}  Kh8 {[%clk 0:01:59]} 15. Bf5 {[%clk 0:02:11]}  Bxf5 {[%clk 0:01:53]} 16. Qxf5 {[%clk 0:02:12]}  g6 {[%clk 0:01:46]} 17. Qd3 {[%clk 0:02:06]}  Kg7 {[%clk 0:01:25]} 18. Qe3 {[%clk 0:01:55]}  Rh8 {[%clk 0:01:23]} 19. Qxc5 {[%clk 0:01:55]}  Bb6 {[%clk 0:01:22]} 20. Qb4 {[%clk 0:01:55]}  Qc7 {[%clk 0:01:20]} 21. Be3 {[%clk 0:01:52]}  Rhe8 {[%clk 0:01:14]} 22. Bxb6 {[%clk 0:01:46]}  Qxb6 {[%clk 0:01:15]} 23. Qxb6 {[%clk 0:01:46]}  axb6 {[%clk 0:01:16]} 24. a3 {[%clk 0:01:45]}  Nf6 {[%clk 0:01:15]} 25. Rad1 {[%clk 0:01:44]}  Rxe1 {[%clk 0:01:05]} 26. Rxe1 {[%clk 0:01:44]}  Rd8 {[%clk 0:01:05]} 27. Rd1 {[%clk 0:01:44]}  b5 {[%clk 0:01:03]} 28. Ne3 {[%clk 0:01:42]}  Rd6 {[%clk 0:01:03]} 29. h5 {[%clk 0:01:40]}  Nxh5 {[%clk 0:00:56]} 30. Rxd5 {[%clk 0:01:38]}  Rxd5 {[%clk 0:00:46]} 31. Nxd5 {[%clk 0:01:39]}  f5 {[%clk 0:00:46]} 32. Nc7 {[%clk 0:01:38]}  f4 {[%clk 0:00:46]} 33. Kg2 {[%clk 0:01:37]}  fxg3 {[%clk 0:00:45]} 34. fxg3 {[%clk 0:01:38]}  Nf6 {[%clk 0:00:45]} 35. Nxb5 {[%clk 0:01:38]}  Nd5 {[%clk 0:00:46]} 36. Nd6 {[%clk 0:01:37]}  Ne3+ {[%clk 0:00:46]} 37. Kg1 {[%clk 0:01:30]}  Nd1 {[%clk 0:00:33]} 38. b4 {[%clk 0:01:21]}  Nxc3 {[%clk 0:00:33]} 39. Nxb7 {[%clk 0:01:21]}  Kf6 {[%clk 0:00:25]} 40. Kg2 {[%clk 0:00:59]}  Ke5 {[%clk 0:00:23]} 41. Nc5 {[%clk 0:00:58]}  Kd5 {[%clk 0:00:19]} 42. Nd3 {[%clk 0:00:37]}  g5 {[%clk 0:00:10]} 43. Nb2 {[%clk 0:00:31]}  Kd4 {[%clk 0:00:05]} 44. a4 {[%clk 0:00:29]}  Nd5 {[%clk 0:00:03]} 45. b5 {[%clk 0:00:28]}  Kc5 {[%clk 0:00:04]} 46. Kh3 {[%clk 0:00:27]}  Nc3 {[%clk 0:00:04]} 47. Kg4 {[%clk 0:00:26]}  Ne2 {[%clk 0:00:03]} 48. Nd3+ {[%clk 0:00:26]}  Kb6 {[%clk 0:00:03]} 49. Ne5 {[%clk 0:00:23]}  Nc3 {[%clk 0:00:01]} 50. Nc4+ {[%clk 0:00:20]}  Kc5 {[%clk 0:00:02]} 51. b6 {[%clk 0:00:17]}  Kxc4 {[%clk 0:00:02]} 52. b7 {[%clk 0:00:17]}  Nd5 {[%clk 0:00:02]} 53. b8=Q {[%clk 0:00:17]}  Nf6+ {[%clk 0:00:03]} 54. Kf5 {[%clk 0:00:17]} 1-0


[Site "https://www.chess.com"]

[Event "Titled Tuesday Blitz June 21 Late 2022"]
[White "Clarke, Brandon G I"]
[Black "Martin Carmona, Gaston Manuel"]
[WhiteFideId "400319"]
[BlackFideId "22284567"]
[WhiteElo "2414"]
[BlackElo "2162"]
[Result "1-0"]
[Round "02"]
[TimeControl "180+1"]
[Date "2022.06.22"]
[WhiteClock "0:00:05"]
[BlackClock "0:00:04"]

1. e4 {[%clk 0:03:00]}  c5 {[%clk 0:02:59]} 2. Nf3 {[%clk 0:03:00]}  d6 {[%clk 0:02:59]} 3. Bb5+ {[%clk 0:03:00]}  Nd7 {[%clk 0:02:59]} 4. O-O {[%clk 0:02:57]}  a6 {[%clk 0:02:59]} 5. Bd3 {[%clk 0:02:57]}  Ngf6 {[%clk 0:02:59]} 6. c3 {[%clk 0:02:58]}  b5 {[%clk 0:02:40]} 7. Re1 {[%clk 0:02:56]}  e6 {[%clk 0:02:26]} 8. a4 {[%clk 0:02:46]}  Bb7 {[%clk 0:02:25]} 9. Bc2 {[%clk 0:02:41]}  c4 {[%clk 0:02:24]} 10. d4 {[%clk 0:02:39]}  cxd3 {[%clk 0:02:21]} 11. Qxd3 {[%clk 0:02:39]}  Nc5 {[%clk 0:02:22]} 12. Qd4 {[%clk 0:02:28]}  e5 {[%clk 0:02:12]} 13. Qd1 {[%clk 0:02:12]}  bxa4 {[%clk 0:02:03]} 14. Bg5 {[%clk 0:01:59]}  Be7 {[%clk 0:02:02]} 15. Bxf6 {[%clk 0:01:59]}  Bxf6 {[%clk 0:02:03]} 16. Bxa4+ {[%clk 0:01:58]}  Nxa4 {[%clk 0:02:03]} 17. Qxa4+ {[%clk 0:01:58]}  Qd7 {[%clk 0:02:03]} 18. Nbd2 {[%clk 0:01:51]}  Bc6 {[%clk 0:02:02]} 19. Qa3 {[%clk 0:01:50]}  Bb5 {[%clk 0:01:50]} 20. Nf1 {[%clk 0:01:43]}  O-O {[%clk 0:01:49]} 21. Ne3 {[%clk 0:01:43]}  Bd8 {[%clk 0:01:43]} 22. Rad1 {[%clk 0:01:42]}  Qb7 {[%clk 0:01:35]} 23. Nf5 {[%clk 0:01:41]}  Bc7 {[%clk 0:01:26]} 24. Nxd6 {[%clk 0:01:38]}  Bxd6 {[%clk 0:01:25]} 25. Rxd6 {[%clk 0:01:33]}  Qe7 {[%clk 0:01:22]} 26. Rxa6 {[%clk 0:01:07]}  Qxa3 {[%clk 0:01:19]} 27. Rxa3 {[%clk 0:01:08]}  Rxa3 {[%clk 0:01:19]} 28. bxa3 {[%clk 0:01:09]}  Rc8 {[%clk 0:01:18]} 29. Nxe5 {[%clk 0:01:02]}  Rxc3 {[%clk 0:01:17]} 30. Ra1 {[%clk 0:01:02]}  f6 {[%clk 0:01:15]} 31. Nf3 {[%clk 0:00:59]}  Bc6 {[%clk 0:01:10]} 32. a4 {[%clk 0:00:29]}  Bxa4 {[%clk 0:01:10]} 33. Nd2 {[%clk 0:00:16]}  Bc6 {[%clk 0:01:06]} 34. f3 {[%clk 0:00:16]}  h5 {[%clk 0:01:03]} 35. Ra2 {[%clk 0:00:14]}  h4 {[%clk 0:01:01]} 36. Kf2 {[%clk 0:00:14]}  Rc1 {[%clk 0:00:58]} 37. Nb3 {[%clk 0:00:10]}  Rh1 {[%clk 0:00:58]} 38. h3 {[%clk 0:00:09]}  Bd7 {[%clk 0:00:56]} 39. Rd2 {[%clk 0:00:07]}  Bb5 {[%clk 0:00:51]} 40. Nd4 {[%clk 0:00:07]}  Rf1+ {[%clk 0:00:50]} 41. Ke3 {[%clk 0:00:08]}  Bc4 {[%clk 0:00:51]} 42. Nf5 {[%clk 0:00:07]}  Re1+ {[%clk 0:00:39]} 43. Kf4 {[%clk 0:00:05]}  g5+ {[%clk 0:00:39]} 44. Kg4 {[%clk 0:00:06]}  Be6 {[%clk 0:00:39]} 45. Rd6 {[%clk 0:00:04]}  Kf7 {[%clk 0:00:39]} 46. Rd2 {[%clk 0:00:02]}  Ra1 {[%clk 0:00:31]} 47. Rb2 {[%clk 0:00:02]}  Ra5 {[%clk 0:00:30]} 48. Rb7+ {[%clk 0:00:01]}  Kf8 {[%clk 0:00:27]} 49. Rc7 {[%clk 0:00:02]}  Ra2 {[%clk 0:00:26]} 50. Kh5 {[%clk 0:00:02]}  Bf7+ {[%clk 0:00:17]} 51. Kh6 {[%clk 0:00:03]}  Rxg2 {[%clk 0:00:17]} 52. Nd6 {[%clk 0:00:03]}  Be6 {[%clk 0:00:16]} 53. Kg6 {[%clk 0:00:03]}  Bxh3 {[%clk 0:00:16]} 54. Kxf6 {[%clk 0:00:04]}  Rf2 {[%clk 0:00:15]} 55. Kxg5 {[%clk 0:00:02]}  Rxf3 {[%clk 0:00:15]} 56. Kxh4 {[%clk 0:00:01]}  Be6 {[%clk 0:00:14]} 57. Kg5 {[%clk 0:00:02]}  Rf1 {[%clk 0:00:12]} 58. e5 {[%clk 0:00:02]}  Bh3 {[%clk 0:00:10]} 59. Ra7 {[%clk 0:00:03]}  Re1 {[%clk 0:00:10]} 60. Rf7+ {[%clk 0:00:02]}  Kg8 {[%clk 0:00:10]} 61. Re7 {[%clk 0:00:02]}  Kf8 {[%clk 0:00:11]} 62. Re8+ {[%clk 0:00:02]}  Kg7 {[%clk 0:00:12]} 63. Re7+ {[%clk 0:00:03]}  Kf8 {[%clk 0:00:12]} 64. Rf7+ {[%clk 0:00:03]}  Kg8 {[%clk 0:00:12]} 65. Rf3 {[%clk 0:00:03]}  Rxe5+ {[%clk 0:00:11]} 66. Kf4 {[%clk 0:00:03]}  Rh5 {[%clk 0:00:11]} 67. Ne4 {[%clk 0:00:03]}  Rh6 {[%clk 0:00:06]} 68. Kg5 {[%clk 0:00:02]}  Rh8 {[%clk 0:00:06]} 69. Nf6+ {[%clk 0:00:03]}  Kg7 {[%clk 0:00:06]} 70. Nh5+ {[%clk 0:00:03]}  Rxh5+ {[%clk 0:00:06]} 71. Kxh5 {[%clk 0:00:03]}  Be6 {[%clk 0:00:06]} 72. Kg5 {[%clk 0:00:04]}  Bf7 {[%clk 0:00:06]} 73. Rf6 {[%clk 0:00:04]}  Bg8 {[%clk 0:00:05]} 74. Ra6 {[%clk 0:00:03]}  Kh8 {[%clk 0:00:05]} 75. Ra7 {[%clk 0:00:02]}  Bd5 {[%clk 0:00:04]} 76. Kf6 {[%clk 0:00:02]}  Bc4 {[%clk 0:00:04]} 77. Rc7 {[%clk 0:00:02]}  Bg8 {[%clk 0:00:05]} 78. Rc5 {[%clk 0:00:02]}  Bb3 {[%clk 0:00:05]} 79. Rh5+ {[%clk 0:00:03]}  Kg8 {[%clk 0:00:06]} 80. Rg5+ {[%clk 0:00:02]}  Kh8 {[%clk 0:00:06]} 81. Rg3 {[%clk 0:00:03]}  Bc4 {[%clk 0:00:06]} 82. Kg6 {[%clk 0:00:03]}  Bd5 {[%clk 0:00:03]} 83. Rh3+ {[%clk 0:00:03]}  Kg8 {[%clk 0:00:04]} 84. Rh4 {[%clk 0:00:04]}  Bb3 {[%clk 0:00:03]} 85. Rb4 {[%clk 0:00:04]}  Bc2+ {[%clk 0:00:04]} 86. Kh6 {[%clk 0:00:05]}  Bf5 {[%clk 0:00:02]} 87. Rb8+ {[%clk 0:00:04]}  Kf7 {[%clk 0:00:02]} 88. Kg5 {[%clk 0:00:05]}  Be6 {[%clk 0:00:03]} 89. Rb7+ {[%clk 0:00:05]}  Kg8 {[%clk 0:00:03]} 90. Kg6 {[%clk 0:00:05]}  Bd5 {[%clk 0:00:04]} 91. Rb8# {[%clk 0:00:05]} 1-0


[Site "https://www.chess.com"]

[Event "Titled Tuesday Blitz June 21 Late 2022"]
[White "D`Arruda, Ricardo D."]
[Black "Nathan, Nitish"]
[WhiteFideId "100692"]
[BlackFideId "30927870"]
[WhiteElo "2496"]
[BlackElo "2259"]
[Result "1-0"]
[Round "02"]
[TimeControl "180+1"]
[Date "2022.06.22"]
[WhiteClock "0:00:59"]
[BlackClock "0:00:56"]

1. Nf3 {[%clk 0:03:00]}  d5 {[%clk 0:02:58]} 2. d4 {[%clk 0:03:00]}  c6 {[%clk 0:02:58]} 3. g3 {[%clk 0:03:00]}  Nf6 {[%clk 0:02:58]} 4. Bg2 {[%clk 0:03:00]}  Bf5 {[%clk 0:02:58]} 5. O-O {[%clk 0:03:00]}  Nbd7 {[%clk 0:02:58]} 6. c4 {[%clk 0:02:58]}  e6 {[%clk 0:02:59]} 7. Nc3 {[%clk 0:02:57]}  Bd6 {[%clk 0:02:57]} 8. Nh4 {[%clk 0:02:53]}  Bg4 {[%clk 0:02:56]} 9. Qc2 {[%clk 0:02:50]}  O-O {[%clk 0:02:45]} 10. e4 {[%clk 0:02:48]}  dxe4 {[%clk 0:02:44]} 11. Nxe4 {[%clk 0:02:49]}  Nxe4 {[%clk 0:02:44]} 12. Bxe4 {[%clk 0:02:48]}  f5 {[%clk 0:02:43]} 13. Bg2 {[%clk 0:02:47]}  Nf6 {[%clk 0:02:35]} 14. Re1 {[%clk 0:02:43]}  Re8 {[%clk 0:02:34]} 15. Bg5 {[%clk 0:02:36]}  h6 {[%clk 0:02:32]} 16. Be3 {[%clk 0:02:36]}  g5 {[%clk 0:02:29]} 17. Ng6 {[%clk 0:02:36]}  Bh5 {[%clk 0:02:28]} 18. Ne5 {[%clk 0:02:35]}  Bxe5 {[%clk 0:02:24]} 19. dxe5 {[%clk 0:02:36]}  Nd7 {[%clk 0:02:23]} 20. f4 {[%clk 0:02:33]}  g4 {[%clk 0:02:22]} 21. Rad1 {[%clk 0:02:30]}  Qe7 {[%clk 0:02:21]} 22. Rd6 {[%clk 0:02:30]}  Rad8 {[%clk 0:02:20]} 23. Red1 {[%clk 0:02:30]}  Nb6 {[%clk 0:02:18]} 24. Bxb6 {[%clk 0:02:17]}  axb6 {[%clk 0:02:17]} 25. Qb3 {[%clk 0:02:17]}  Qc7 {[%clk 0:02:13]} 26. Qd3 {[%clk 0:02:15]}  Ra8 {[%clk 0:02:07]} 27. Rd7 {[%clk 0:02:13]}  Qc8 {[%clk 0:02:07]} 28. a3 {[%clk 0:02:10]}  Bf7 {[%clk 0:02:03]} 29. Qd6 {[%clk 0:02:09]}  h5 {[%clk 0:01:56]} 30. h4 {[%clk 0:02:05]}  Ra4 {[%clk 0:01:54]} 31. b3 {[%clk 0:02:03]}  Ra8 {[%clk 0:01:52]} 32. a4 {[%clk 0:02:02]}  Ra7 {[%clk 0:01:48]} 33. Bxc6 {[%clk 0:01:55]}  Rf8 {[%clk 0:01:38]} 34. Rc7 {[%clk 0:01:47]}  Qb8 {[%clk 0:01:28]} 35. Bg2 {[%clk 0:01:46]}  Ra8 {[%clk 0:01:21]} 36. Qxb6 {[%clk 0:01:41]}  Rd8 {[%clk 0:01:17]} 37. Rd6 {[%clk 0:01:38]}  Ra6 {[%clk 0:01:16]} 38. Qxb7 {[%clk 0:01:23]}  Raxd6 {[%clk 0:01:14]} 39. exd6 {[%clk 0:01:21]}  Qxb7 {[%clk 0:01:14]} 40. Bxb7 {[%clk 0:01:18]}  Rxd6 {[%clk 0:01:15]} 41. c5 {[%clk 0:01:17]}  Rd1+ {[%clk 0:01:13]} 42. Kf2 {[%clk 0:01:18]}  Rd2+ {[%clk 0:01:11]} 43. Ke1 {[%clk 0:01:18]}  Rd3 {[%clk 0:01:09]} 44. c6 {[%clk 0:01:14]}  Rxg3 {[%clk 0:01:08]} 45. Rxf7 {[%clk 0:01:13]}  Kxf7 {[%clk 0:01:03]} 46. c7 {[%clk 0:01:13]}  Rc3 {[%clk 0:00:59]} 47. c8=Q {[%clk 0:01:13]}  Rxc8 {[%clk 0:00:59]} 48. Bxc8 {[%clk 0:01:14]}  e5 {[%clk 0:00:58]} 49. fxe5 {[%clk 0:01:11]}  f4 {[%clk 0:00:58]} 50. a5 {[%clk 0:01:10]}  f3 {[%clk 0:00:57]} 51. Kf2 {[%clk 0:01:10]}  Kg6 {[%clk 0:00:56]} 52. a6 {[%clk 0:01:09]}  Kf7 {[%clk 0:00:57]} 53. a7 {[%clk 0:01:08]}  Ke7 {[%clk 0:00:58]} 54. a8=Q {[%clk 0:01:08]}  Kd8 {[%clk 0:00:59]} 55. Bxg4+ {[%clk 0:01:06]}  Kc7 {[%clk 0:01:00]} 56. Qa7+ {[%clk 0:01:04]}  Kc6 {[%clk 0:00:59]} 57. Bxf3+ {[%clk 0:01:04]}  Kb5 {[%clk 0:00:57]} 58. Qa4+ {[%clk 0:01:01]}  Kc5 {[%clk 0:00:57]} 59. Qc4+ {[%clk 0:01:00]}  Kb6 {[%clk 0:00:56]} 60. e6 {[%clk 0:00:59]}  Ka5 {[%clk 0:00:56]} 61. e7 {[%clk 0:00:58]}  Kb6 {[%clk 0:00:56]} 62. e8=Q {[%clk 0:00:59]}  Ka5 {[%clk 0:00:56]} 63. Qd8# {[%clk 0:00:59]} 1-0


[Site "https://www.chess.com"]

[Event "Titled Tuesday Blitz June 21 Late 2022"]
[White "Dardha, Daniel"]
[Black "Prydun, Andriy"]
[WhiteFideId "240990"]
[BlackFideId "14145898"]
[WhiteElo "2482"]
[BlackElo "2063"]
[Result "1-0"]
[Round "02"]
[TimeControl "180+1"]
[Date "2022.06.22"]
[WhiteClock "0:01:44"]
[BlackClock "0:00:01"]

1. d4 {[%clk 0:02:59]}  Nf6 {[%clk 0:02:59]} 2. c4 {[%clk 0:02:58]}  c5 {[%clk 0:02:58]} 3. d5 {[%clk 0:02:57]}  e5 {[%clk 0:02:58]} 4. Nc3 {[%clk 0:02:52]}  d6 {[%clk 0:02:58]} 5. e4 {[%clk 0:02:51]}  Nbd7 {[%clk 0:02:58]} 6. Bd3 {[%clk 0:02:47]}  Be7 {[%clk 0:02:57]} 7. Nge2 {[%clk 0:02:47]}  h5 {[%clk 0:02:54]} 8. f3 {[%clk 0:02:45]}  h4 {[%clk 0:02:53]} 9. Be3 {[%clk 0:02:44]}  Nf8 {[%clk 0:02:31]} 10. Qd2 {[%clk 0:02:43]}  Ng6 {[%clk 0:02:31]} 11. O-O-O {[%clk 0:02:43]}  a6 {[%clk 0:02:28]} 12. g3 {[%clk 0:02:40]}  Bd7 {[%clk 0:02:27]} 13. f4 {[%clk 0:02:35]}  Ng4 {[%clk 0:02:20]} 14. Kb1 {[%clk 0:02:30]}  b5 {[%clk 0:01:48]} 15. cxb5 {[%clk 0:02:29]}  axb5 {[%clk 0:01:45]} 16. Bxb5 {[%clk 0:02:28]}  Bxb5 {[%clk 0:01:20]} 17. Nxb5 {[%clk 0:02:27]}  exf4 {[%clk 0:01:18]} 18. gxf4 {[%clk 0:02:24]}  Qa5 {[%clk 0:00:36]} 19. Nec3 {[%clk 0:02:23]}  O-O {[%clk 0:00:26]} 20. Rhg1 {[%clk 0:02:20]}  Nxe3 {[%clk 0:00:24]} 21. Qxe3 {[%clk 0:02:20]}  Rfb8 {[%clk 0:00:25]} 22. a4 {[%clk 0:02:18]}  Bf6 {[%clk 0:00:24]} 23. e5 {[%clk 0:02:15]}  dxe5 {[%clk 0:00:24]} 24. Rxg6 {[%clk 0:02:14]}  exf4 {[%clk 0:00:23]} 25. Rxg7+ {[%clk 0:01:52]}  Bxg7 {[%clk 0:00:22]} 26. Qxf4 {[%clk 0:01:52]}  Qb4 {[%clk 0:00:16]} 27. Qg5 {[%clk 0:01:45]}  Rxa4 {[%clk 0:00:12]} 28. Rg1 {[%clk 0:01:44]}  Qe4+ {[%clk 0:00:01]} 29. Nxe4 {[%clk 0:01:44]} 1-0


[Site "https://www.chess.com"]

[Event "Titled Tuesday Blitz June 21 Late 2022"]
[White "Desideri, Ricardo Maruchi"]
[Black "Roman, Rodrigo"]
[WhiteFideId "2110440"]
[BlackFideId "3701220"]
[WhiteElo "1945"]
[BlackElo "2001"]
[Result "0-1"]
[Round "02"]
[TimeControl "180+1"]
[Date "2022.06.22"]
[WhiteClock "0:02:08"]
[BlackClock "0:02:49"]

1. e4 {[%clk 0:03:00]}  c5 {[%clk 0:03:00]} 2. Nf3 {[%clk 0:02:59]}  d6 {[%clk 0:03:01]} 3. d4 {[%clk 0:02:59]}  cxd4 {[%clk 0:03:02]} 4. Nxd4 {[%clk 0:02:59]}  Nf6 {[%clk 0:03:03]} 5. Nc3 {[%clk 0:02:59]}  a6 {[%clk 0:03:04]} 6. Rg1 {[%clk 0:02:59]}  e5 {[%clk 0:03:05]} 7. Nb3 {[%clk 0:02:57]}  h5 {[%clk 0:03:05]} 8. h3 {[%clk 0:02:56]}  Be6 {[%clk 0:03:05]} 9. g4 {[%clk 0:02:57]}  hxg4 {[%clk 0:03:05]} 10. hxg4 {[%clk 0:02:57]}  Nc6 {[%clk 0:03:04]} 11. g5 {[%clk 0:02:58]}  Nd7 {[%clk 0:03:04]} 12. Be3 {[%clk 0:02:56]}  b5 {[%clk 0:03:03]} 13. a3 {[%clk 0:02:55]}  Nc5 {[%clk 0:03:03]} 14. Nxc5 {[%clk 0:02:47]}  dxc5 {[%clk 0:03:04]} 15. Nd5 {[%clk 0:02:19]}  Ne7 {[%clk 0:02:56]} 16. c4 {[%clk 0:02:17]}  bxc4 {[%clk 0:02:53]} 17. Bxc4 {[%clk 0:02:16]}  Bxd5 {[%clk 0:02:51]} 18. exd5 {[%clk 0:02:13]}  Nf5 {[%clk 0:02:51]} 19. Qa4+ {[%clk 0:02:09]}  Qd7 {[%clk 0:02:50]} 20. Bb5 {[%clk 0:02:08]}  Qxb5 {[%clk 0:02:49]} 0-1


[Site "https://www.chess.com"]

[Event "Titled Tuesday Blitz June 21 Late 2022"]
[White "Diaz Rosas, Julio Cesar"]
[Black "Sarana, Alexey"]
[WhiteFideId "5105099"]
[BlackFideId "24133795"]
[WhiteElo "2278"]
[BlackElo "2666"]
[Result "0-1"]
[Round "02"]
[TimeControl "180+1"]
[Date "2022.06.21"]
[WhiteClock "0:00:04"]
[BlackClock "0:00:05"]

1. d4 {[%clk 0:03:00]}  Nf6 {[%clk 0:02:58]} 2. c4 {[%clk 0:02:56]}  e6 {[%clk 0:02:58]} 3. Nc3 {[%clk 0:02:56]}  Bb4 {[%clk 0:02:57]} 4. a3 {[%clk 0:02:56]}  Bxc3+ {[%clk 0:02:57]} 5. bxc3 {[%clk 0:02:56]}  Nc6 {[%clk 0:02:56]} 6. f3 {[%clk 0:02:55]}  b6 {[%clk 0:02:52]} 7. e4 {[%clk 0:02:54]}  Na5 {[%clk 0:02:52]} 8. Bd3 {[%clk 0:02:45]}  c5 {[%clk 0:02:46]} 9. Bg5 {[%clk 0:02:36]}  h6 {[%clk 0:02:29]} 10. Bh4 {[%clk 0:02:33]}  Ba6 {[%clk 0:02:29]} 11. e5 {[%clk 0:02:05]}  g5 {[%clk 0:02:28]} 12. Bf2 {[%clk 0:02:04]}  Nh5 {[%clk 0:02:28]} 13. Ne2 {[%clk 0:02:04]}  Bxc4 {[%clk 0:02:23]} 14. O-O {[%clk 0:02:00]}  cxd4 {[%clk 0:02:14]} 15. cxd4 {[%clk 0:01:54]}  Rc8 {[%clk 0:02:14]} 16. Re1 {[%clk 0:01:45]}  d5 {[%clk 0:02:07]} 17. exd6 {[%clk 0:01:36]}  Qxd6 {[%clk 0:02:04]} 18. Nc3 {[%clk 0:01:33]}  Bxd3 {[%clk 0:01:45]} 19. Qxd3 {[%clk 0:01:34]}  Nf4 {[%clk 0:01:45]} 20. Qb5+ {[%clk 0:01:22]}  Qd7 {[%clk 0:01:39]} 21. Qe5 {[%clk 0:01:12]}  Ng6 {[%clk 0:01:08]} 22. Qg7 {[%clk 0:00:53]}  Ke7 {[%clk 0:00:30]} 23. d5 {[%clk 0:00:39]}  Rhg8 {[%clk 0:00:31]} 24. Qd4 {[%clk 0:00:19]}  Rc4 {[%clk 0:00:30]} 25. Qd3 {[%clk 0:00:19]}  Nf4 {[%clk 0:00:27]} 26. Qe3 {[%clk 0:00:08]}  Nxd5 {[%clk 0:00:21]} 27. Nxd5+ {[%clk 0:00:08]}  Qxd5 {[%clk 0:00:21]} 28. Rad1 {[%clk 0:00:09]}  Qf5 {[%clk 0:00:19]} 29. Qd2 {[%clk 0:00:09]}  Rgc8 {[%clk 0:00:17]} 30. Qd6+ {[%clk 0:00:08]}  Kf6 {[%clk 0:00:16]} 31. Bd4+ {[%clk 0:00:08]}  Kg6 {[%clk 0:00:16]} 32. h4 {[%clk 0:00:08]}  Rc2 {[%clk 0:00:15]} 33. h5+ {[%clk 0:00:08]}  Kh7 {[%clk 0:00:14]} 34. Bf2 {[%clk 0:00:07]}  g4 {[%clk 0:00:12]} 35. Rd3 {[%clk 0:00:05]}  Rg8 {[%clk 0:00:09]} 36. f4 {[%clk 0:00:05]}  g3 {[%clk 0:00:09]} 37. Bxg3 {[%clk 0:00:04]}  Nc4 {[%clk 0:00:09]} 38. Qd4 {[%clk 0:00:04]}  Rg4 {[%clk 0:00:06]} 39. Rf3 {[%clk 0:00:04]}  Nd2 {[%clk 0:00:06]} 40. Rfe3 {[%clk 0:00:03]}  Nc4 {[%clk 0:00:05]} 41. Rf3 {[%clk 0:00:03]}  b5 {[%clk 0:00:06]} 42. Qd8 {[%clk 0:00:03]}  Rd2 {[%clk 0:00:06]} 43. Qe7 {[%clk 0:00:03]}  a5 {[%clk 0:00:05]} 44. Re5 {[%clk 0:00:03]}  Rd1+ {[%clk 0:00:03]} 45. Kf2 {[%clk 0:00:03]}  Nxe5 {[%clk 0:00:03]} 46. fxe5 {[%clk 0:00:04]}  Qc2+ {[%clk 0:00:04]} 47. Ke3 {[%clk 0:00:04]}  Rd3# {[%clk 0:00:05]} 0-1


[Site "https://www.chess.com"]

[Event "Titled Tuesday Blitz June 21 Late 2022"]
[White "Do Valle Cardoso, Lucas"]
[Black "Garagulya, Konstantin"]
[WhiteFideId "2163144"]
[BlackFideId "4128931"]
[WhiteElo "2277"]
[BlackElo "2329"]
[Result "1-0"]
[Round "02"]
[TimeControl "180+1"]
[Date "2022.06.22"]
[WhiteClock "0:00:08"]
[BlackClock "0:01:01"]

1. d4 {[%clk 0:03:00]}  Nf6 {[%clk 0:02:53]} 2. c4 {[%clk 0:03:00]}  e6 {[%clk 0:02:53]} 3. Nc3 {[%clk 0:03:00]}  d5 {[%clk 0:02:54]} 4. cxd5 {[%clk 0:03:00]}  exd5 {[%clk 0:02:54]} 5. Bg5 {[%clk 0:03:00]}  Be7 {[%clk 0:02:55]} 6. e3 {[%clk 0:02:59]}  O-O {[%clk 0:02:50]} 7. Bd3 {[%clk 0:02:58]}  h6 {[%clk 0:02:50]} 8. Bh4 {[%clk 0:02:58]}  b6 {[%clk 0:02:50]} 9. Nge2 {[%clk 0:02:29]}  Bb7 {[%clk 0:02:51]} 10. O-O {[%clk 0:02:25]}  Bc8 {[%clk 0:02:52]} 11. a3 {[%clk 0:02:15]}  Bb7 {[%clk 0:02:53]} 12. b4 {[%clk 0:02:14]}  c5 {[%clk 0:02:54]} 13. bxc5 {[%clk 0:02:14]}  bxc5 {[%clk 0:02:53]} 14. Rb1 {[%clk 0:02:14]}  Bc6 {[%clk 0:02:52]} 15. a4 {[%clk 0:01:49]}  c4 {[%clk 0:02:41]} 16. Bc2 {[%clk 0:01:49]}  Nbd7 {[%clk 0:02:35]} 17. f3 {[%clk 0:01:46]}  Re8 {[%clk 0:02:26]} 18. h3 {[%clk 0:01:30]}  Rb8 {[%clk 0:02:20]} 19. Bf2 {[%clk 0:01:15]}  a5 {[%clk 0:02:17]} 20. e4 {[%clk 0:01:15]}  Rb4 {[%clk 0:02:10]} 21. e5 {[%clk 0:01:14]}  Nh7 {[%clk 0:02:11]} 22. f4 {[%clk 0:01:10]}  Nb6 {[%clk 0:02:00]} 23. f5 {[%clk 0:00:51]}  Qd7 {[%clk 0:01:57]} 24. Be3 {[%clk 0:00:38]}  Nxa4 {[%clk 0:01:46]} 25. Nxa4 {[%clk 0:00:33]}  Bxa4 {[%clk 0:01:45]} 26. Bxa4 {[%clk 0:00:26]}  Qxa4 {[%clk 0:01:45]} 27. Qe1 {[%clk 0:00:18]}  Rxb1 {[%clk 0:01:42]} 28. Qxb1 {[%clk 0:00:18]}  Qb3 {[%clk 0:01:42]} 29. Qc1 {[%clk 0:00:16]}  Ba3 {[%clk 0:01:40]} 30. Qd2 {[%clk 0:00:16]}  Bb4 {[%clk 0:01:40]} 31. Qc1 {[%clk 0:00:16]}  f6 {[%clk 0:01:37]} 32. Bxh6 {[%clk 0:00:14]}  fxe5 {[%clk 0:01:32]} 33. f6 {[%clk 0:00:10]}  gxf6 {[%clk 0:01:28]} 34. Rxf6 {[%clk 0:00:09]}  Qd3 {[%clk 0:01:18]} 35. Qf1 {[%clk 0:00:09]}  exd4 {[%clk 0:01:12]} 36. Rf3 {[%clk 0:00:08]}  Qxe2 {[%clk 0:01:08]} 37. Rg3+ {[%clk 0:00:08]}  Ng5 {[%clk 0:01:04]} 38. Rxg5+ {[%clk 0:00:08]}  Kh7 {[%clk 0:01:01]} 39. Qf7+ {[%clk 0:00:08]}  Kxh6 {[%clk 0:01:01]} 40. Qg6# {[%clk 0:00:08]} 1-0


[Site "https://www.chess.com"]